{"text_format":"3","workbook":"xlsx","n_sheets":2,"sheets":["Início","Fatura de Serviço"],"not_rendered":{"images":1,"defined_names":1},"read":"whole","date_system":"1900"}

{"sheet":"Início","index":0,"n_rows":8,"n_cols":2,"rows_kept":8}
[null,"ACERCA DESTE MODELO"]
[null,"Utilize este modelo para criar uma Fatura de Serviço"]
[null,"Preencha o número da Fatura, Data, Nome da Empresa, Endereço, Slogan e os detalhes do campo Cobrar A."]
[null,"Introduza as informações nas tabelas."]
[null,"O total será calculado automaticamente."]
[null,"Nota: "]
[null,"Existem instruções adicionais na coluna A na folha de cálculo FATURA DE SERVIÇO. O texto encontra-se intencionalmente oculto. Para remover o texto, selecione a coluna A e, em seguida, selecione Eliminar. Para mostrar o texto, selecione a coluna A e, em seguida, mude a cor do tipo de letra."]
[null,"Para saber mais sobre as tabelas, prima Shift+F10 numa tabela, selecione a opção Tabela e, em seguida, selecione Texto Alternativo."]

{"sheet":"Fatura de Serviço","index":1,"n_rows":43,"n_cols":5,"rows_kept":43,"merged":[[0,1,0,2],[0,3,0,4],[1,1,1,4],[2,1,2,3],[3,1,3,3],[4,1,4,2],[5,1,5,2],[6,1,6,2],[7,1,7,2],[41,1,41,2],[41,3,41,4],[42,1,42,4]]}
["Crie uma Fatura de Serviço nesta folha de cálculo. Introduza o Logótipo da Empresa na célula à direita e o título desta folha de cálculo na célula D1. Existem instruções úteis sobre como utilizar esta folha de cálculo nas células desta coluna. A instrução seguinte encontra-se na célula A3.","O marcador de posição de logótipo encontra-se nesta célula.",null,"FATURA"]
[]
["Introduza o Nome da Empresa na célula à direita.","O Nome da Sua Empresa"]
["Introduza o Slogan da Empresa na célula à direita.","O Slogan da Sua Empresa"]
["Introduza o Endereço da Empresa na célula à direita e o número da Fatura na célula E5.","Endereço",null,"FATURA N.º","N.º"]
["Introduza o Código Postal, Distrito e Localidade na célula à direita e a Data na célula E6.","Código Postal, Localidade",null,"DATA ",{"$f":"TODAY()","v":"2019-04-19"}]
["Introduza os números de Telefone e Fax na célula à direita e o ID na célula E7.","Telefone/Fax",null,"ID DO CLIENTE ","ID"]
["Introduza o Endereço de E-mail na célula à direita.","E-mail"]
["A etiqueta de \"Para\" está na célula à direita. Introduza os detalhes de Cobrar A, como o Nome, o Nome da Empresa, o Endereço e o número de Telefone nas células C9 a C13. A instrução seguinte encontra-se na célula A14.","PARA","Nome"]
[null,null,"Nome da Empresa"]
[null,null,"Endereço"]
[null,null,"Código Postal, Localidade"]
[null,null,"Telefone"]
["Introduza as informações na tabela Detalhes de Vendas que começa na célula à direita. A instrução seguinte encontra-se na célula A17.","REPRESENTANTE DE VENDAS","SERVIÇO PRESTADO","TERMOS DE PAGAMENTO","DATA DE VENCIMENTO"]
[{"$nulls":3},"Fatura de pagamento imediato"]
[]
["Introduza informações na tabela Fatura a partir da célula à direita. O Subtotal e o Total são calculados automaticamente. A instrução seguinte está na célula A42.","QUANTIDADE","DESCRIÇÃO","PREÇO UNITÁRIO","TOTAL DA LINHA"]
[{"$nulls":4},{"$f":"IF(SUM(B18)>0,SUM(B18*'Fatura de Serviço'!$D18),\"\")","v":""}]
[{"$nulls":4},{"$f":"IF(SUM(B19)>0,SUM(B19*'Fatura de Serviço'!$D19),\"\")","v":""}]
[{"$nulls":4},{"$f":"IF(SUM(B20)>0,SUM(B20*'Fatura de Serviço'!$D20),\"\")","v":""}]
[{"$nulls":4},{"$f":"IF(SUM(B21)>0,SUM(B21*'Fatura de Serviço'!$D21),\"\")","v":""}]
[{"$nulls":4},{"$f":"IF(SUM(B22)>0,SUM(B22*'Fatura de Serviço'!$D22),\"\")","v":""}]
[{"$nulls":4},{"$f":"IF(SUM(B23)>0,SUM(B23*'Fatura de Serviço'!$D23),\"\")","v":""}]
[{"$nulls":4},{"$f":"IF(SUM(B24)>0,SUM(B24*'Fatura de Serviço'!$D24),\"\")","v":""}]
[{"$nulls":4},{"$f":"IF(SUM(B25)>0,SUM(B25*'Fatura de Serviço'!$D25),\"\")","v":""}]
[{"$nulls":4},{"$f":"IF(SUM(B26)>0,SUM(B26*'Fatura de Serviço'!$D26),\"\")","v":""}]
[{"$nulls":4},{"$f":"IF(SUM(B27)>0,SUM(B27*'Fatura de Serviço'!$D27),\"\")","v":""}]
[{"$nulls":4},{"$f":"IF(SUM(B28)>0,SUM(B28*'Fatura de Serviço'!$D28),\"\")","v":""}]
[{"$nulls":4},{"$f":"IF(SUM(B29)>0,SUM(B29*'Fatura de Serviço'!$D29),\"\")","v":""}]
[{"$nulls":4},{"$f":"IF(SUM(B30)>0,SUM(B30*'Fatura de Serviço'!$D30),\"\")","v":""}]
[{"$nulls":4},{"$f":"IF(SUM(B31)>0,SUM(B31*'Fatura de Serviço'!$D31),\"\")","v":""}]
[{"$nulls":4},{"$f":"IF(SUM(B32)>0,SUM(B32*'Fatura de Serviço'!$D32),\"\")","v":""}]
[{"$nulls":4},{"$f":"IF(SUM(B33)>0,SUM(B33*'Fatura de Serviço'!$D33),\"\")","v":""}]
[{"$nulls":4},{"$f":"IF(SUM(B34)>0,SUM(B34*'Fatura de Serviço'!$D34),\"\")","v":""}]
[{"$nulls":4},{"$f":"IF(SUM(B35)>0,SUM(B35*'Fatura de Serviço'!$D35),\"\")","v":""}]
[{"$nulls":4},{"$f":"IF(SUM(B36)>0,SUM(B36*'Fatura de Serviço'!$D36),\"\")","v":""}]
[{"$nulls":4},{"$f":"IF(SUM(B37)>0,SUM(B37*'Fatura de Serviço'!$D37),\"\")","v":""}]
[{"$nulls":3},"SUBTOTAL",{"$f":"IF(SUM(E18:E37)>0,SUM(E18:E37),\"\")","v":""}]
[{"$nulls":3},"IMPOSTO DE VENDA"]
[{"$nulls":3},"TOTAL",{"$f":"IF(SUM(E38)>0,SUM((E38*E39)+E38),\"\")","v":""}]
[]
["O Nome da Empresa é atualizado automaticamente na célula D42.","Passar todos os cheques à ordem de",null,{"$f":"B3","v":"O Nome da Sua Empresa"}]
["A mensagem de Agradecimento encontra-se na célula à direita.","OBRIGADO PELA SUA PREFERÊNCIA!"]